Cogmind - Beta 15 @@@ ROGUE MODE // 2025.07.18 @ 20:46:31 Player: EX-OCT Result: Destroyed by Piercing Trap Performance ------------- Evolutions (0) 0 Regions Visited (2) 400 Robots Destroyed (36) 180 Value Destroyed (958) 958 Prototype IDs (11) 220 Alien Tech Used (0) 0 Bonus (-74) -74 TOTAL SCORE: 1684 Bonus ------- Friendly Fire -74 Cogmind --------- Core Integrity 0/250 Matter 300/300 Energy 98/100 System Corruption 0% Temperature Cool (0) Movement Rolling (130) Ox2 Location -10/Subcaves Parts ------- > --- POWER (1) -------- (None) > --- PROPULSION (2) --- Compact Wheel Compact Wheel > --- UTILITY (2) ------ Huge Storage Unit Makeshift Light Armor Plating > --- WEAPON (2) ------- Light EM Pulse Cannon Light EM Pulse Cannon > --- INVENTORY (25) --- Subdweller Power Source Light Treads Spiked Treads Subdweller Monowheel Subdweller Monowheel Improved Heat Sink High-capacity Storage Unit High-capacity Battery (250) Subdweller Optics Light Armor Plating Makeshift Light Armor Plating Scrap Shield Subdweller Laser Subdweller Laser Light EM Pulse Cannon Light EM Pulse Cannon Subdweller Beam Cannon Improved Light Cannon Improved Light Cannon Improved Light Cannon Grenade Launcher Subdweller Shrapnel Launcher Hammer Peak State ------------ > --- POWER ------------ Ion Engine > --- PROPULSION ------- Compact Wheel Compact Wheel > --- UTILITY ---------- Huge Storage Unit Makeshift Light Armor Plating > --- WEAPON ----------- Improved Light Cannon Improved Light Cannon > --- INVENTORY -------- Ion Engine Subdweller Power Source Light Treads Light Treads Spiked Treads Compact Wheel Improved Heat Sink High-capacity Storage Unit High-capacity Battery Subdweller Optics Light Armor Plating Scrap Shield Subdweller Laser Light EM Pulse Cannon Light EM Pulse Cannon Light EM Pulse Cannon Light EM Pulse Cannon Subdweller Beam Cannon Subdweller Beam Cannon Improved Light Cannon Improved Light Cannon Grenade Launcher Subdweller Shrapnel Launcher Hammer [Rating: 16] Favorites ----------- Power Ion Engine Engine Ion Engine Power Core Light Nuclear Core Propulsion Compact Wheel Treads Light Treads Wheel Compact Wheel Utility Huge Storage Unit Device Subdweller Optics Storage Huge Storage Unit Protection Makeshift Light Armor Plating Weapon Improved Light Cannon Energy Gun Small Laser Energy Cannon Light EM Pulse Cannon Ballistic Cannon Improved Light Cannon Launcher Subdweller Shrapnel Launcher Impact Weapon Hammer Build | -11 -10 -10 ------- Run | Yrd Mat Sub Slots Evolved . | . . . Power . | . . . Propulsion . | . . . Utility . | . . . Weapon . | . . . Parts Attached 28 | 6 12 10 Power 3 | 1 1 1 Engine 2 | 1 . 1 Core 1 | . 1 . Reactor . | . . . Propulsion 5 | 3 2 . Treads 1 | 1 . . Leg . | . . . Wheel 4 | 2 2 . Hover . | . . . Flight . | . . . Utility 8 | . 5 3 Device 1 | . . 1 Storage 4 | . 4 . Processor . | . . . Hackware . | . . . Protection 3 | . 1 2 Artifact . | . . . Weapon 12 | 2 4 6 Energy Gun 2 | 2 . . Energy Cannon 4 | . . 4 Ballistic Gun . | . . . Ballistic Cannon 4 | . 3 1 Launcher 1 | . . 1 Special Weapon . | . . . Impact Weapon 1 | . 1 . Slashing Weapon . | . . . Piercing Weapon . | . . . Special Melee Weapon . | . . . Unidentified Prototypes . | . . . Parts Lost 5 | . 1 4 Power 3 | . . 3 Propulsion 1 | . 1 . Utility . | . . . Weapon 1 | . . 1 Highest Loss Streak 2 | . 1 2 To Critical Strikes 1 | . . 1 Average Backups 19 | . 8 21 Power 1 | . 1 1 Propulsion 3 | . 2 3 Utility 4 | . 1 5 Weapon 9 | . 4 10 Tool/Special . | . . . Unused Backups 13 | . . 13 Power 1 | . . 1 Propulsion 4 | . . 4 Utility 3 | . . 3 Weapon 5 | . . 5 Tool/Special . | . . . Average Slot Usage (%) 97 | . 89 99 Engine 10 | . 3 11 Core 3 | . 10 1 Treads 2 | . 12 . Wheel 25 | . 15 28 Storage 13 | . 12 14 Protection 12 | . 6 13 Energy Cannon 3 | . . 4 Ballistic Cannon 23 | . 25 22 Impact Weapon 1 | . 1 1 Peak Build Rating 16 | 5 13 16 Average Rating 13 | 3 10 14 On Entrance 6 | . 5 13 Naked Turns . | . . . Heaviest Build 101 | 8 96 101 Greatest Support 32 | 20 32 32 Greatest Overweight (x) 3 | . 3 3 Average Overweight (x) 2 | . 2 2 Largest Inventory Capacity 25 | 5 25 25 Average Capacity 23 | 5 16 25 Most Carried 25 | 2 16 25 Average Carried 19 | . 8 22 Final Capacity 25 | 5 25 25 Final Carried 24 | 2 16 24 Class Distribution -------------------- 100% | Mutant Dominant Class ---------------- Mutant | -10/Materials Mutant | -10/Subcaves Resources | -11 -10 -10 ----------- Run | Yrd Mat Sub Matter Collected 1415 | 260 352 803 Remotely . | . . . Salvage Created 978 | 93 421 464 Parts 46 | . 29 17 Haulers Intercepted 2 | . 2 . Recyclers Shooed . | . . . Parts Field Recycled . | . . . Retrieved Matter . | . . . Parts Self-Destructed 5 | . . 5 Prevented . | . . . Kills | -11 -10 -10 ------- Run | Yrd Mat Sub Combat Hostiles Destroyed 30 | . 15 15 Cannons 26 | . 15 11 AOE 4 | . . 4 Classes Destroyed 9 | 1 4 4 Hauler 2 | . 2 . Recycler 1 | 1 . . Turret 2 | . . 2 Watcher 1 | . 1 . Swarmer 10 | . 6 4 Grunt 9 | . 9 . Artisan 1 | . . 1 Cobbler 1 | . . 1 Subdweller 11 | . . 11 Best Kill Streak 9 | 1 9 6 Combat Bots Only 8 | . 8 4 Max Kills in Single Turn 3 | 1 1 3 Gunslinging . | . . . Exploded 2 | . . 2 Melee . | . . . Uniques/NPCs Destroyed . | . . . Combat | -11 -10 -10 -------- Run | Yrd Mat Sub Hostile Shots Fired 130 | . 47 83 Missed 43 | . 12 31 Hits 87 | . 35 52 Projectile 87 | . 35 52 Critical Strikes 2 | . 1 1 Damage Taken 1367 | . 366 1001 Core 257 | . 29 228 Absorbed by Shields . | . . . Regen/Repaired (Parts) 182 | . 182 . Core Remaining (%) 100 | 100 . . Volleys Fired 153 | 5 34 114 Largest 2 | 2 2 2 Hottest 136 | 90 66 136 Shots Fired 254 | 10 68 176 Gun 10 | 10 . . Cannon 240 | . 68 172 Launcher 4 | . . 4 Special . | . . . Kinetic 186 | . 68 118 Thermal 48 | 10 . 38 Explosive . | . . . Electromagnetic 20 | . . 20 Robot Hit Streak 15 | 6 9 15 Robot Miss Streak 2 | 1 2 2 Penetration Max . | . . . Secondary Targets . | . . . Shots Hit Robots 144 | 7 40 97 Core Hits 59 | 2 20 37 Critical Kills . | . . . Critical Parts Destroyed . | . . . Critical Strikes 7 | 1 1 5 Burn 1 | 1 . . Blast 6 | . 1 5 Melee Attacks 53 | . 7 46 Impact 53 | . 7 46 Slashing . | . . . Piercing . | . . . Sneak Attacks . | . . . Combat Hostiles . | . . . Follow-up Attacks . | . . . Damage Inflicted 3308 | 80 870 2358 Guns 80 | 80 . . Cannons 2860 | . 869 1991 Explosions 367 | . . 367 Melee . | . . . Ramming 1 | . 1 . Kinetic 2822 | . 869 1953 Thermal 109 | 80 . 29 Explosive . | . . . Electromagnetic 376 | . . 376 Impact . | . . . Slashing . | . . . Piercing . | . . . Highest Corruption . | . . . Average Corruption . | . . . Corruption Purged . | . . . Corruption Blocked . | . . . Overload Shots . | . . . Overflow Damage 31 | . . 31 Projectiles 31 | . . 31 Explosions . | . . . Melee . | . . . Knockbacks 30 | . 10 20 Impact . | . . . Kinetic 29 | . 9 20 Secondary 1 | . 1 . Self-Inflicted Damage . | . . . Shots . | . . . Rammed 1 | . 1 . Targets Rammed 1 | . 1 . Kicked . | . . . Crushed . | . . . Highest Temperature 130 | 75 108 130 Average Temperature 35 | 39 28 42 Received Heat Transfer 333 | . 141 192 Siege Activations . | . . . Martial Activations . | . . . Shielding Activations . | . . . Robots Disrupted . | . . . Combat Hostiles . | . . . Robots Corrupted 2 | . . 2 Combat Hostiles 2 | . . 2 Parts Fried 9 | . . 9 Impact Corruptions . | . . . Robots Melted . | . . . Combat Hostiles . | . . . Parts Melted 1 | 1 . . Heat Transferred 322 | 285 . 37 Parts Sabotaged . | . . . Parts Stolen . | . . . Parts Stripped . | . . . Power Chain Reactions . | . . . Alert | -11 -10 -10 ------- Run | Yrd Mat Sub Maximum Alert Level 1 | . 1 . Low Security (%) 95 | 100 94 . Level 1 4 | . 5 . Level 2 . | . . . Level 3 . | . . . Level 4 . | . . . Level 5 . | . . . High Security . | . . . Max Security . | . . . Peak Influence 216 | 5 216 . Initial . | . . . Average 98 | . 103 . Influence Increases 785 | 5 435 345 Destroy 0b10 Robot/C 420 | . 300 120 Destroy 0b10 Robot/NC 20 | 5 15 . Destroy Leader 66 | . 66 . Successful Hack 29 | . 29 . Destroy Structure 10 | . 10 . Lose Combat Pursuer 240 | . 15 225 Influence Decreases 574 | 5 435 134 Time Decay 494 | 5 365 124 Lost Part 20 | . 10 10 Purge Threat 60 | . 60 . Squads Dispatched 2 | . 2 . Investigation 1 | . 1 . Extermination . | . . . Reinforcement 1 | . 1 . Assault . | . . . Garrison . | . . . Intercept . | . . . Searches Triggered . | . . . Construction Impeded . | . . . Haulers Reinforced . | . . . Active Scanning Responses . | . . . Cargo Convoy Interrupts . | . . . Stealth | -11 -10 -10 --------- Run | Yrd Mat Sub Distress Signals 1 | . 1 . Communications Jammed . | . . . Distress Signals . | . . . Times Spotted 37 | . 22 15 Peak Tracking Total 6 | . 6 6 Tactical Retreats 4 | . 1 3 Traps | -11 -10 -10 ------- Run | Yrd Mat Sub Traps Triggered 8 | . 1 7 Indirectly . | . . . Trap Hack Attempts . | . . . Triggered . | . . . Disarmed . | . . . Reprogrammed . | . . . Reused . | . . . Traps Extracted . | . . . Installed . | . . . Triggered . | . . . Machines | -11 -10 -10 ---------- Run | Yrd Mat Sub Machines Disabled 3 | . . 3 Max in Single Turn 1 | . . 1 Machines Repaired . | . . . Machines Dismantled . | . . . Machines Sabotaged . | . . . Overloaded Fab Kills . | . . . Hacking | -11 -10 -10 --------- Run | Yrd Mat Sub Machines Accessed 11 | . 9 2 Terminals 8 | . 8 . Fabricators . | . . . Repair Stations 1 | . 1 . Recycling Units . | . . . Scanalyzers . | . . . Garrison Access . | . . . Total Hacks 43 | . 31 12 Successful 30 | . 18 12 Failed 13 | . 13 . Catastrophic . | . . . Database Lockouts . | . . . Manual 25 | . 25 . Terminals 27 | . 27 . Fabricators . | . . . Repair Stations 4 | . 4 . Recycling Units . | . . . Scanalyzers . | . . . Garrison Access . | . . . Terminal Hacks 16 | . 4 12 Record 11 | . . 11 Robot Analysis 2 | . 2 . Terminal Index 1 | . 1 . Unreport Threat 1 | . 1 . Proto ID Catalog 1 | . . 1 Fabricator Hacks . | . . . Repair Station Hacks 4 | . 4 . Scan Component 2 | . 2 . Repair 2 | . 2 . Recycling Unit Hacks . | . . . Scanalyzer . | . . . Garrison Access Hacks . | . . . Unauthorized Hacks 10 | . 10 . Terminals 10 | . 10 . Botnet 4 | . 4 . Skim 6 | . 6 . Fabricators . | . . . Repair Stations . | . . . Recycling Units . | . . . Scanalyzers . | . . . Garrison Access . | . . . Data Cores Recovered . | . . . Used . | . . . Hacking Detections 8 | . 8 . Full Trace Events . | . . . Feedback Events . | . . . Feedback Blocked . | . . . Robot Schematics Acquired . | . . . Robots Built . | . . . Authchips . | . . . Time . | . . . Total Robot Build Rating . | . . . Part Schematics Acquired . | . . . Parts Built . | . . . Authchips . | . . . Time . | . . . Total Part Build Rating . | . . . Parts Repaired 2 | . 2 . Time 64 | . 64 . Parts Recycled . | . . . Recycled Matter . | . . . Retrieved Matter . | . . . Retrieved Components . | . . . Parts Scanalyzed . | . . . Part Schematics Acquired . | . . . Parts Damaged . | . . . Bothacking | -11 -10 -10 ------------ Run | Yrd Mat Sub Used RIF Installer . | . . . Robots Hacked . | . . . Non-combat . | . . . Combat . | . . . Robot Hacks Applied . | . . . Relay Couplers Released . | . . . Fabnet Peak Effective % . | . . . Robots Rewired . | . . . Allies Hacked . | . . . Hacks Repelled . | . . . Allies | -11 -10 -10 -------- Run | Yrd Mat Sub Total Allies . | . . . Largest Group . | . . . Highest-Rated Group . | . . . Highest-Rated Ally . | . . . Total Orders . | . . . Ally Attacks . | . . . Total Damage . | . . . Kills . | . . . Allies Corrupted . | . . . Allies Melted . | . . . Intel | -11 -10 -10 ------- Run | Yrd Mat Sub Active Infowar (turns) 31 | . . 31 Optics 31 | . . 31 Robot Analysis Total 2 | . 2 . Derelict Logs Recovered 3 | . . 3 Drone Launches . | . . . Drone Recoveries . | . . . Exploration | -11 -10 -10 ------------- Run | Yrd Mat Sub Turns Passed 5576 | 64 1074 4438 Spaces Moved 3315 | 44 674 2597 Core 2 | 2 . . Treads 3 | 3 . . Legs . | . . . Wheels 3310 | 39 674 2597 Hover . | . . . Flight . | . . . Fastest Speed 50 | 50 80 130 Average Speed 135 | 89 125 138 Slowest Speed 160 | 160 145 145 Overloaded Moves . | . . . Propulsion Burnouts . | . . . Robots Hopped . | . . . Potential Cave-ins 2 | . . 2 Cave-ins Triggered . | . . . Exploration Rate (%) 64 | 4 91 97 Regions Visited 2 Branch Regions 1 Pre-discovered Areas 7 | . 4 3 Known Exits Taken . | . . . Unknown Exits Taken 2 | 1 1 . Scrap Searched 6 | . . 6 Spaces Dug 51 | . 4 47 Terrain Destroyed 98 | . 7 91 Melee 20 | . 4 16 Projectile 38 | . 3 35 AOE 40 | . . 40 Terrain Rammed . | . . . Walls Destroyed . | . . . Machines Disabled . | . . . Actions | -11 -10 -10 --------- Run | Yrd Mat Sub Total 4032 | 55 817 3160 Wait 437 | . 71 366 Move 3313 | 43 673 2597 Hop . | . . . Pick Up 25 | 1 12 12 Fast Attach 12 | 5 6 1 Attach 5 | . 1 4 Detach 2 | . 1 1 Swap 25 | 1 9 15 Drop 6 | . 2 4 Fire 153 | 5 34 114 Melee 53 | . 7 46 Ram . | . . . Kick . | . . . Crush 1 | . 1 . Escape Stasis . | . . . Rewire . | . . . Trap . | . . . Miscellaneous . | . . . Route ------- -11/Scrapyard -10/Materials (discovered 5 exits: [*Mat x2] / *Min x2 / *Sub) -10/Subcaves (discovered 3 exits: [*Mat x2] / [*Rec]) History --------- Turn | Location | Event 2 | -11/Scrapyard | Met Revision 17 16 | -11/Scrapyard | Discovered new exit (range 15) 65 | -11/Scrapyard | Entered Materials 146 | -10/Materials | Discovered new exit (range 14) 291 | -10/Materials | Destroyed 8 combat bots 315 | -10/Materials | Build established: Mutant 477 | -10/Materials | Discovered new exit (range 8) 508 | -10/Materials | Identified exit to Mines 734 | -10/Materials | Learned location of Mines (-10) 814 | -10/Materials | Learned location of 1 exit from Recycling 840 | -10/Materials | Loaded intel: 1 repair station location 877 | -10/Materials | Learned Storage emergency access door positions 922 | -10/Materials | Learned 2 Mines zone layouts 1024 | -10/Materials | Repaired Imp. Light Cannon 1058 | -10/Materials | Repaired Imp. Light Cannon 1130 | -10/Materials | Discovered new exit (range 6) 1139 | -10/Materials | Entered Subcaves 1147 | -10/Subcaves | Learned location of Zion (-6) 1729 | -10/Subcaves | Visited Clippyterm 1733 | -10/Subcaves | Learned 40 Factory zone layouts 1806 | -10/Subcaves | Discovered new exit (range 5) 2128 | -10/Subcaves | Shifting Twisted Machinery released Mak. Flight Unit 2139 | -10/Subcaves | Shifting Twisted Machinery released Battle Cannon 2239 | -10/Subcaves | Visited 4L-MR0's lab 2824 | -10/Subcaves | Core integrity fell below 50% 2861 | -10/Subcaves | Discovered new exit (range 11) 2956 | -10/Subcaves | Shifting Twisted Machinery released Sub. Laser 2981 | -10/Subcaves | Shifting Twisted Machinery released Battle Rifle 3560 | -10/Subcaves | Discovered new exit (range 15) 3943 | -10/Subcaves | Core integrity fell below 20% 4157 | -10/Subcaves | Shifting Twisted Machinery released Sub. Monowheel 5577 | -10/Subcaves | Destroyed by Piercing Trap Last Messages --------------- 05359_ Subatomizers dissect the Sub. Monowheel. 05369_ DT-KD5(R) system terminally corrupted. 05369_ Sub. Power Source fried. 05369_ Sub. Monowheel fried. 05369_ Sub. Optics fried. 05369_ Sub. Laser fried. 05371_ Acquired 4 matter. 05396_ Subatomizers dissect the Sub. Monowheel. 05567_ Triggered Piercing Trap. 05567_ Spikes shoot up from the floor. 05567_ Critical hit (Impale). 05570_ Triggered Piercing Trap. 05570_ Spikes shoot up from the floor. 05570_ Critical hit (Impale). 05572_ Triggered Piercing Trap. 05572_ Spikes shoot up from the floor. 05572_ Critical hit (Impale). 05572_ Ion Engine destroyed. 05577_ Triggered Piercing Trap. 05577_ Spikes shoot up from the floor. Map ----- +----------------------------------------------------+ | ???????????????## #?## | | ??????????????## #??## | | ??????????????# #???## | | ??????????????# #????## | | ??????????????## ###???? | | ???????????????## #????# #### | | ????????????????## ### #????####??### | | ?????????????????## ##?#######????????????? | | ??????????????????## ##?????????????????????? | | ???????????????????# #??????????????????????? | | ????????????????#### ##??????????????????????? | | ????????????????# #???????????????????????? | | ????????????????## #???????????????????????? | | ?????????????????## ### #???????????????????????? | | ??????????????????# #?###???????????????????????? | | ??????????????????# #???????????????????????????? | | ?????????????????## ##??????????????????????????? | | ???????????????### #??????????????????????????? | | ??????????????## ##??????????????????????????? | | ??????????????# ^ ##?????????????????????????? | | ??????????????#### ^ ##????????????????????????? | | ?????????????????# ##???????????????????????? | | ?????????????????#^### ##?####?????????????????? | | ?????????????????##??## ### ##????????????????? | | ??????????????????????# ^ ###??????????????? | | ##????????????????????# @ #??????????????? | | #?????##?????????????# ## ###??????????????? | | #???## #?????????????## ###^ #????????????????? | | #??## #??????????????# ## #????????????????? | | #?## #?????????????## # #????????????????? | | ### ##?????????????# # #????????????????? | | ## #???????????????# # # #????????????????? | | ## #??????????????## ##????????????????? | | #??????????????# #????????????????? | | #??????????????#### # ##????????????????? | | #?????????????????## #?????????????????? | | #?????????????????## ##?????????????????? | | ###?????????????????# ##?????????????????? | | #???????????????????## ##????????????????? | | ##??????????????????## #????????????????? | | #?????????????????## ##???????????????? | | ##???????????????## #######?????????? | | #??????????????## ## #?????????? | | # #??????????????# ## ##????????? | | ### ##??????????????# ## ##???????? | | ??## #???????????????# # #???????? | | ??## #???????????????# ### ##??????? | | ??# ###?????????????# #?# #??????? | | ??# %#?????????????# ##?# ##????## | | ??## #?????????????## ##???# #### ###### | +----------------------------------------------------+ Best States ------------- Heat Dissipation 25 Energy Generation 14 Energy Capacity 250 Matter Stores 300 Matter Capacity 300 Sight Range 21 Terrain Scan Density 10 Armor Coverage 150 Evasion (%) 44 Recoil Reduction 1 Item Schematics ----------------- None Robot Schematics ------------------ None Fabricated ------------ Nothing Repaired ---------- Imp. Light Cannon | 26% | -10/Materials Imp. Light Cannon | 38% | -10/Materials Alien Tech Used ----------------- None Achievements -------------- None Challenges ------------ None Game ------ Seed BladeHelicalWheel Manual? 0 Play Time 00:35:43 Cumulative 347.2 hours Start 2025.07.18 @ 20:03:38 End 2025.07.18 @ 20:46:31 Sessions 1 Manual Loads 0 Difficulty Rogue Special Mode None Game No. 168 Rogue 168 Adventurer 0 Explorer 0 Win Type - Total 23 Types 8/1/5/1/5/1/0/1/0/1 Lore% 90 Gallery% 79 Achievement% 76 Wizard Run 0 Options --------- Layout 1 ASCII 0 Keyboard 0 Movement Numpad Keybinds 0 Fullscreen 1 Font 24/Smallcaps Map View 50x35 Zoom Use 0% Tactical HUD 1 Map Filters NONE Filters NONE Steam 1 RUN: 21fe95b4-147c-4188-a1be-8be35059b781